[Event "VII Open Internacional Quart de Poblet"]
[Site "Quart de Poblet, Spain"]
[Date "2019.08.11"]
[Round "9.1"]
[White "Cruz Lledo, Pablo"]
[Black "Nieves Cabanes, Javier"]
[Result "1-0"]
[TimeControl "90m +30s por jugada"]
[WhiteFideId "2297361"]
[BlackFideId "22245707"]
[WhiteElo "2445"]
[BlackElo "2211"]

1. d4 {[%clk 01:19:54]} {[%emt 00:11:06]} Nf6 {[%clk 01:30:50]} {[%emt
00:00:05]} 2. Nf3 {[%clk 01:20:17]} {[%emt 00:00:12]} d5 {[%clk 01:31:03]}
{[%emt 00:00:24]} 3. e3 {[%clk 01:20:21]} {[%emt 00:00:13]} c5 {[%clk
01:31:08]} {[%emt 00:00:25]} 4. c4 {[%clk 01:20:47]} {[%emt 00:00:06]} e6
{[%clk 01:31:02]} {[%emt 00:00:34]} 5. cxd5 {[%clk 01:20:57]} {[%emt 00:00:20]}
exd5 {[%clk 01:31:06]} {[%emt 00:00:27]} 6. Bb5+ {[%clk 01:21:20]} {[%emt
00:00:07]} Bd7 {[%clk 01:30:42]} {[%emt 00:00:54]} 7. Bxd7+ {[%clk 01:21:42]}
{[%emt 00:00:08]} Nbxd7 {[%clk 01:31:03]} {[%emt 00:00:09]} 8. O-O {[%clk
01:22:03]} {[%emt 00:00:08]} c4 {[%clk 01:27:23]} {[%emt 00:04:10]} 9. a4
{[%clk 01:19:16]} {[%emt 00:03:17]} a6 {[%clk 01:19:32]} {[%emt 00:08:21]} 10.
a5 {[%clk 01:18:52]} {[%emt 00:00:55]} b5 {[%clk 01:16:12]} {[%emt 00:03:49]}
11. axb6 {[%clk 01:19:14]} {[%emt 00:00:08]} Qxb6 {[%clk 01:16:36]} {[%emt
00:00:06]} 12. Qa4 {[%clk 01:15:27]} {[%emt 00:04:16]} Bb4 {[%clk 01:09:54]}
{[%emt 00:07:13]} 13. Ne5 {[%clk 01:15:23]} {[%emt 00:00:36]} Qb7 {[%clk
01:00:27]} {[%emt 00:09:53]} 14. b3 {[%clk 01:03:33]} {[%emt 00:12:21]} O-O
{[%clk 00:51:04]} {[%emt 00:09:53]} 15. bxc4 {[%clk 01:03:16]} {[%emt
00:00:47]} Nxe5 {[%clk 00:50:42]} {[%emt 00:00:51]} 16. dxe5 {[%clk 01:03:20]}
{[%emt 00:00:26]} Ng4 {[%clk 00:50:15]} {[%emt 00:00:56]} 17. cxd5 {[%clk
01:01:10]} {[%emt 00:02:41]} a5 {[%clk 00:45:08]} {[%emt 00:05:41]} 18. Qb3
{[%clk 00:52:54]} {[%emt 00:08:41]} Rad8 {[%clk 00:41:11]} {[%emt 00:04:27]} 19.
e4 {[%clk 00:52:40]} {[%emt 00:00:44]} f5 {[%clk 00:40:05]} {[%emt 00:01:36]}
20. Bg5 {[%clk 00:47:20]} {[%emt 00:05:50]} fxe4 {[%clk 00:36:29]} {[%emt
00:04:06]} 21. Bxd8 {[%clk 00:47:36]} {[%emt 00:00:14]} e3 {[%clk 00:36:10]}
{[%emt 00:00:50]} 22. Nd2 {[%clk 00:33:41]} {[%emt 00:14:24]} exf2+ {[%clk
00:27:36]} {[%emt 00:09:08]} 23. Kh1 {[%clk 00:33:57]} {[%emt 00:00:11]} Rxd8
{[%clk 00:27:02]} {[%emt 00:01:05]} 24. d6+ {[%clk 00:33:26]} {[%emt 00:01:04]}
Kh8 {[%clk 00:27:14]} {[%emt 00:00:14]} 25. Qg3 {[%clk 00:32:54]} {[%emt
00:01:07]} Bxd2 {[%clk 00:22:34]} {[%emt 00:05:09]} 26. Qxg4 {[%clk 00:33:11]}
{[%emt 00:00:09]} Bc3 {[%clk 00:22:36]} {[%emt 00:00:27]} 27. Rad1 {[%clk
00:33:15]} {[%emt 00:00:41]} Bxe5 {[%clk 00:22:11]} {[%emt 00:00:41]} 28. d7
{[%clk 00:33:38]} {[%emt 00:00:07]} Qb6 {[%clk 00:21:18]} {[%emt 00:01:22]} 29.
Qe2 {[%clk 00:32:28]} {[%emt 00:01:41]} Qc7 {[%clk 00:17:13]} {[%emt 00:04:36]}
30. Rc1 {[%clk 00:31:31]} {[%emt 00:01:26]} 1-0

[Event "VII Open Internacional Quart de Poblet"]
[Site "Quart de Poblet, Spain"]
[Date "2019.08.11"]
[Round "9.2"]
[White "Castella Garcia, Fausto"]
[Black "Davtyan, David Arm"]
[Result "0-1"]
[TimeControl "90m +30s por jugada"]
[WhiteFideId "3501922"]
[WhiteElo "2315"]
[BlackElo "2249"]

1. e4 {[%clk 01:14:50]} {[%emt 00:16:14]} c5 {[%clk 01:30:47]} {[%emt
00:00:08]} 2. Nf3 {[%clk 01:14:44]} {[%emt 00:00:38]} Nc6 {[%clk 01:31:11]}
{[%emt 00:00:35]} 3. Bb5 {[%clk 01:15:09]} {[%emt 00:00:03]} g6 {[%clk
01:31:36]} 4. c3 {[%clk 01:15:29]} Nf6 {[%clk 01:28:48]} {[%emt 00:03:18]} 5.
e5 {[%clk 01:15:35]} {[%emt 00:00:16]} Nd5 {[%clk 01:29:09]} {[%emt 00:00:07]}
6. O-O {[%clk 01:14:31]} {[%emt 00:01:37]} Nc7 {[%clk 01:26:12]} {[%emt
00:03:24]} 7. a4 {[%clk 01:13:44]} {[%emt 00:01:36]} Bg7 {[%clk 01:25:00]}
{[%emt 00:01:27]} 8. d4 {[%clk 01:14:01]} {[%emt 00:00:32]} cxd4 {[%clk
01:25:00]} {[%emt 00:00:07]} 9. cxd4 {[%clk 01:14:25]} {[%emt 00:00:37]} O-O
{[%clk 01:25:20]} {[%emt 00:00:03]} 10. Nc3 {[%clk 01:08:27]} {[%emt 00:06:03]}
d6 {[%clk 01:20:51]} {[%emt 00:05:02]} 11. Bxc6 {[%clk 01:08:08]} {[%emt
00:00:49]} bxc6 {[%clk 01:21:12]} {[%emt 00:00:12]} 12. h3 {[%clk 01:02:00]}
{[%emt 00:06:33]} Rb8 {[%clk 01:17:53]} {[%emt 00:03:49]} 13. Re1 {[%clk
00:58:18]} {[%emt 00:04:15]} Be6 {[%clk 01:11:35]} {[%emt 00:06:45]} 14. exd6
{[%clk 00:52:56]} {[%emt 00:05:54]} exd6 {[%clk 01:08:45]} {[%emt 00:03:19]} 15.
Bg5 {[%clk 00:43:04]} {[%emt 00:10:19]} Qd7 {[%clk 01:08:02]} {[%emt 00:01:14]}
16. Qd2 {[%clk 00:42:00]} {[%emt 00:01:34]} Rfe8 {[%clk 01:02:10]} {[%emt
00:06:22]} 17. Ne4 {[%clk 00:35:41]} {[%emt 00:06:51]} Nd5 {[%clk 01:01:50]}
{[%emt 00:00:48]} 18. Bh6 {[%clk 00:34:45]} {[%emt 00:01:29]} Bh8 {[%clk
00:59:33]} {[%emt 00:02:44]} 19. Nfg5 {[%clk 00:32:58]} {[%emt 00:02:20]} Rb4
{[%clk 00:58:21]} {[%emt 00:01:39]} 20. Nf3 {[%clk 00:18:59]} {[%emt 00:14:55]}
Reb8 {[%clk 00:56:22]} {[%emt 00:02:05]} 21. Qg5 {[%clk 00:19:00]} {[%emt
00:00:26]} Bf5 {[%clk 00:46:50]} {[%emt 00:10:06]} 22. Nc3 {[%clk 00:17:08]}
{[%emt 00:02:20]} Bf6 {[%clk 00:46:22]} {[%emt 00:00:57]} 23. Qg3 {[%clk
00:17:36]} {[%emt 00:00:24]} Rxb2 {[%clk 00:45:37]} {[%emt 00:00:53]} 24. Nxd5
{[%clk 00:17:56]} {[%emt 00:00:13]} cxd5 {[%clk 00:46:03]} {[%emt 00:00:04]} 25.
Bf4 {[%clk 00:16:07]} {[%emt 00:02:16]} R8b6 {[%clk 00:43:04]} {[%emt
00:03:29]} 26. Bg5 {[%clk 00:14:40]} {[%emt 00:01:57]} Qd8 {[%clk 00:41:56]}
{[%emt 00:01:39]} 27. Qh4 {[%clk 00:14:07]} {[%emt 00:01:07]} Bxg5 {[%clk
00:40:25]} {[%emt 00:01:54]} 28. Nxg5 {[%clk 00:14:32]} {[%emt 00:00:28]} h5
{[%clk 00:40:43]} {[%emt 00:00:11]} 29. g4 {[%clk 00:14:41]} {[%emt 00:00:03]}
f6 {[%clk 00:36:35]} {[%emt 00:04:38]} 30. gxf5 {[%clk 00:11:24]} {[%emt
00:03:45]} fxg5 {[%clk 00:36:41]} {[%emt 00:00:30]} 31. Qg3 {[%clk 00:11:47]}
{[%emt 00:00:10]} Qf6 {[%clk 00:31:07]} {[%emt 00:06:04]} 32. fxg6 {[%clk
00:07:42]} {[%emt 00:04:26]} R6b3 {[%clk 00:28:23]} {[%emt 00:03:17]} 33. Qg2
{[%clk 00:07:20]} {[%emt 00:00:49]} Rf3 {[%clk 00:28:25]} {[%emt 00:00:28]} 34.
Re8+ {[%clk 00:05:59]} {[%emt 00:01:53]} Kg7 {[%clk 00:28:06]} {[%emt
00:01:03]} 35. Re6 {[%clk 00:01:57]} {[%emt 00:04:17]} Rfxf2 {[%clk 00:27:53]}
{[%emt 00:00:46]} 36. Qxd5 {[%clk 00:01:47]} {[%emt 00:00:36]} Rg2+ {[%clk
00:28:13]} {[%emt 00:00:22]} 0-1

[Event "VII Open Internacional Quart de Poblet"]
[Site "Quart de Poblet, Spain"]
[Date "2019.08.11"]
[Round "9.3"]
[White "Lara Lopez, Jose"]
[Black "Kovacevic, Slobodan"]
[Result "1/2-1/2"]
[TimeControl "90m +30s por jugada"]
[WhiteFideId "2257041"]
[BlackFideId "902152"]
[WhiteElo "2271"]
[BlackElo "2252"]

1. e4 {[%clk 01:30:59]} c5 {[%clk 01:30:35]} {[%emt 00:00:07]} 2. Nc3 {[%clk
01:30:37]} {[%emt 00:00:49]} e6 {[%clk 01:30:16]} {[%emt 00:00:50]} 3. Nf3
{[%clk 01:30:31]} {[%emt 00:00:36]} a6 {[%clk 01:30:24]} {[%emt 00:00:36]} 4.
g3 {[%clk 01:28:48]} {[%emt 00:01:59]} Qc7 {[%clk 01:30:36]} {[%emt 00:00:18]}
5. Bg2 {[%clk 01:29:06]} {[%emt 00:00:39]} d6 {[%clk 01:30:40]} {[%emt
00:00:03]} 6. O-O {[%clk 01:27:36]} {[%emt 00:01:54]} Nf6 {[%clk 01:30:48]}
{[%emt 00:00:22]} 7. Re1 {[%clk 01:24:15]} {[%emt 00:03:54]} Be7 {[%clk
01:31:04]} {[%emt 00:00:43]} 8. e5 {[%clk 01:23:06]} {[%emt 00:01:09]} dxe5
{[%clk 01:31:26]} {[%emt 00:00:37]} 9. Nxe5 {[%clk 01:23:32]} Nbd7 {[%clk
01:31:40]} {[%emt 00:00:07]} 10. Qe2 {[%clk 01:17:20]} {[%emt 00:06:27]} Nxe5
{[%clk 01:31:44]} {[%emt 00:00:24]} 11. Qxe5 {[%clk 01:17:44]} {[%emt
00:00:33]} Bd6 {[%clk 01:31:55]} 12. Qe2 {[%clk 01:17:56]} {[%emt 00:00:10]}
O-O {[%clk 01:32:19]} {[%emt 00:00:39]} 13. d3 {[%clk 01:17:53]} {[%emt
00:00:03]} Bd7 {[%clk 01:31:39]} {[%emt 00:01:11]} 14. Bg5 {[%clk 01:16:58]}
{[%emt 00:01:46]} Be7 {[%clk 01:32:07]} {[%emt 00:00:04]} 15. Ne4 {[%clk
00:56:12]} {[%emt 00:20:50]} Nd5 {[%clk 01:25:53]} {[%emt 00:06:43]} 16. Bxe7
{[%clk 00:54:49]} {[%emt 00:02:08]} Nxe7 {[%clk 01:26:20]} 17. Rad1 {[%clk
00:52:52]} {[%emt 00:02:18]} Nf5 {[%clk 01:22:55]} {[%emt 00:03:53]} 18. c3
{[%clk 00:51:57]} {[%emt 00:01:26]} Rad8 {[%clk 01:22:57]} {[%emt 00:00:40]} 19.
Nd2 {[%clk 00:46:04]} {[%emt 00:06:09]} Ba4 {[%clk 01:19:55]} {[%emt 00:03:31]}
20. b3 {[%clk 00:45:16]} {[%emt 00:01:23]} Bc6 {[%clk 01:20:02]} {[%emt
00:00:42]} 21. Nc4 {[%clk 00:42:49]} {[%emt 00:02:35]} Bxg2 {[%clk 01:19:09]}
{[%emt 00:01:28]} 22. Kxg2 {[%clk 00:43:12]} {[%emt 00:00:05]} b5 {[%clk
01:18:49]} {[%emt 00:00:47]} 23. Ne3 {[%clk 00:28:45]} {[%emt 00:14:59]} Ne7
{[%clk 01:16:55]} {[%emt 00:02:22]} 24. Kg1 {[%clk 00:17:16]} {[%emt 00:12:00]}
Qb6 {[%clk 01:16:35]} {[%emt 00:00:49]} 25. a4 {[%clk 00:17:07]} {[%emt
00:00:40]} b4 {[%clk 01:16:39]} {[%emt 00:00:25]} 26. c4 {[%clk 00:15:43]}
{[%emt 00:01:54]} Nc6 {[%clk 01:14:29]} {[%emt 00:02:42]} 27. Nc2 {[%clk
00:16:09]} {[%emt 00:00:08]} Na5 {[%clk 01:14:48]} {[%emt 00:00:07]} 28. Na1
{[%clk 00:16:29]} {[%emt 00:00:07]} Rd6 {[%clk 01:15:12]} {[%emt 00:00:08]} 29.
Qe4 {[%clk 00:16:29]} {[%emt 00:00:29]} Rfd8 {[%clk 01:15:21]} {[%emt
00:00:21]} 30. Re3 {[%clk 00:16:24]} {[%emt 00:00:34]} h6 {[%clk 01:15:20]}
{[%emt 00:00:32]} 31. Rf3 {[%clk 00:16:09]} {[%emt 00:00:45]} 1/2-1/2

[Event "VII Open Internacional Quart de Poblet"]
[Site "Quart de Poblet, Spain"]
[Date "2019.08.11"]
[Round "9.4"]
[White "Chernikov, Vladimir"]
[Black "Serrano Felipe, Rafael"]
[Result "1/2-1/2"]
[TimeControl "90m +30s por jugada"]
[WhiteFideId "14112914"]
[BlackFideId "2252112"]
[WhiteElo "2315"]
[BlackElo "2101"]

1. c4 {[%clk 01:30:58]} {[%emt 00:00:16]} e5 {[%clk 01:30:52]} 2. Nc3 {[%clk
01:31:26]} {[%emt 00:00:14]} Nf6 {[%clk 01:31:11]} 3. Nf3 {[%clk 01:31:55]} Nc6
{[%clk 01:31:30]} {[%emt 00:00:10]} 4. d4 {[%clk 01:32:22]} {[%emt 00:00:03]}
exd4 {[%clk 01:31:41]} {[%emt 00:00:18]} 5. Nxd4 {[%clk 01:32:50]} {[%emt
00:00:03]} Bb4 {[%clk 01:32:02]} {[%emt 00:00:06]} 6. Bg5 {[%clk 01:31:54]}
{[%emt 00:01:23]} h6 {[%clk 01:32:05]} {[%emt 00:00:44]} 7. Bh4 {[%clk
01:32:02]} {[%emt 00:00:06]} Qe7 {[%clk 01:32:07]} {[%emt 00:00:28]} 8. e3
{[%clk 01:23:06]} {[%emt 00:09:26]} d6 {[%clk 01:16:28]} {[%emt 00:16:15]} 9.
Nxc6 {[%clk 01:07:57]} {[%emt 00:15:32]} Bxc3+ {[%clk 01:15:23]} {[%emt
00:01:35]} 10. bxc3 {[%clk 01:08:21]} {[%emt 00:00:34]} bxc6 {[%clk 01:15:50]}
11. Qf3 {[%clk 01:07:44]} {[%emt 00:00:48]} Qe4 {[%clk 01:12:56]} {[%emt
00:03:18]} 12. Bxf6 {[%emt 00:00:40]} Qxf3 {[%clk 01:13:17]} {[%emt 00:00:04]}
13. gxf3 {[%clk 01:08:10]} {[%emt 00:00:03]} gxf6 {[%clk 01:13:43]} {[%emt
00:00:03]} 14. Rb1 {[%clk 01:06:54]} {[%emt 00:01:42]} Rg8 {[%clk 01:13:17]}
{[%emt 00:00:57]} 15. Be2 {[%clk 01:07:00]} {[%emt 00:00:24]} Rg5 {[%clk
01:07:15]} {[%emt 00:06:31]} 16. Kd2 {[%clk 00:54:43]} {[%emt 00:12:51]} Ra5
{[%clk 00:51:22]} {[%emt 00:16:19]} 17. Rb2 {[%clk 00:53:03]} {[%emt 00:02:09]}
Be6 {[%clk 00:51:47]} {[%emt 00:00:11]} 18. Rg1 {[%clk 00:51:51]} {[%emt
00:01:39]} Kf8 {[%clk 00:40:03]} {[%emt 00:12:13]} 19. Ra1 {[%clk 00:51:40]}
{[%emt 00:00:39]} Rd8 {[%clk 00:38:50]} {[%emt 00:01:43]} 20. Rb7 {[%clk
00:51:13]} {[%emt 00:01:00]} Rd7 {[%clk 00:29:29]} {[%emt 00:09:49]} 21. f4
{[%clk 00:50:53]} {[%emt 00:00:50]} d5 {[%clk 00:27:19]} {[%emt 00:02:42]} 22.
c5 {[%clk 00:49:51]} {[%emt 00:01:30]} Re7 {[%clk 00:24:01]} {[%emt 00:03:55]}
23. a4 {[%clk 00:39:33]} {[%emt 00:10:41]} Bc8 {[%clk 00:21:16]} {[%emt
00:03:15]} 24. Rb8 {[%clk 00:39:51]} {[%emt 00:00:11]} Re8 {[%clk 00:21:42]}
{[%emt 00:00:17]} 25. Bd3 {[%clk 00:39:12]} {[%emt 00:01:22]} Ke7 {[%clk
00:16:34]} {[%emt 00:05:16]} 26. Kc2 {[%clk 00:38:20]} {[%emt 00:01:19]} Bd7
{[%clk 00:11:36]} {[%emt 00:05:27]} 27. Rxe8+ {[%clk 00:27:07]} {[%emt
00:11:45]} Bxe8 {[%clk 00:11:03]} {[%emt 00:01:01]} 28. f5 {[%clk 00:27:10]}
{[%emt 00:00:30]} Rxc5 {[%clk 00:06:57]} {[%emt 00:04:33]} 29. a5 {[%clk
00:27:38]} {[%emt 00:00:13]} Bd7 {[%clk 00:07:14]} {[%emt 00:00:05]} 30. Kb3
{[%clk 00:27:35]} {[%emt 00:00:33]} Kd6 {[%clk 00:03:59]} {[%emt 00:03:42]} 31.
f4 {[%clk 00:21:53]} {[%emt 00:06:12]} Bxf5 {[%clk 00:03:28]} {[%emt 00:01:01]}
32. Bxf5 {[%clk 00:21:49]} {[%emt 00:00:41]} d4 {[%clk 00:03:56]} {[%emt
00:00:04]} 33. e4 {[%clk 00:18:44]} {[%emt 00:03:26]} Rxc3+ {[%emt 00:09:52]}
34. Kb4 {[%emt 00:00:04]} c5+ 35. Kb5 a6+ {[%emt 00:00:09]} 36. Kb4 1/2-1/2

[Event "VII Open Internacional Quart de Poblet"]
[Site "Quart de Poblet, Spain"]
[Date "2019.08.11"]
[Round "9.5"]
[White "Nieves Cabanes, Jose Manuel"]
[Black "Galvan Cipriani, Viviana"]
[Result "1-0"]
[TimeControl "90m +30s por jugada"]
[WhiteFideId "22245715"]
[BlackFideId "32041144"]
[WhiteElo "2311"]
[BlackElo "1941"]

1. d4 {[%clk 01:30:57]} {[%emt 00:00:35]} c5 {[%clk 01:19:50]} {[%emt
00:10:39]} 2. dxc5 {[%clk 01:31:04]} {[%emt 00:00:37]} e6 {[%clk 01:19:48]}
{[%emt 00:00:20]} 3. Nd2 {[%clk 01:31:29]} {[%emt 00:00:06]} Bxc5 {[%clk
01:19:24]} {[%emt 00:01:01]} 4. Ne4 {[%clk 01:31:53]} Nf6 {[%clk 01:19:05]}
{[%emt 00:00:45]} 5. Nxc5 {[%clk 01:28:07]} {[%emt 00:04:16]} Qa5+ {[%clk
01:19:29]} {[%emt 00:00:31]} 6. c3 {[%clk 01:27:52]} {[%emt 00:00:20]} Qxc5
{[%clk 01:19:52]} {[%emt 00:00:34]} 7. Nf3 {[%clk 01:25:53]} {[%emt 00:02:02]}
d5 {[%clk 01:19:46]} {[%emt 00:00:36]} 8. Be3 {[%clk 01:23:17]} {[%emt
00:03:22]} Qe7 {[%clk 01:16:30]} {[%emt 00:03:30]} 9. Bg5 {[%clk 01:21:31]}
{[%emt 00:02:16]} Nbd7 {[%clk 01:13:17]} {[%emt 00:03:43]} 10. e3 {[%clk
01:20:08]} {[%emt 00:01:53]} b6 {[%clk 01:11:13]} {[%emt 00:02:41]} 11. Bb5
{[%clk 01:12:32]} {[%emt 00:08:00]} a6 {[%clk 01:08:38]} {[%emt 00:03:07]} 12.
Be2 {[%clk 01:11:30]} {[%emt 00:01:31]} Bb7 {[%clk 01:06:44]} {[%emt 00:02:27]}
13. h3 {[%clk 01:11:33]} {[%emt 00:00:22]} Qc5 {[%clk 00:53:29]} {[%emt
00:13:47]} 14. Bf4 {[%clk 01:06:30]} {[%emt 00:05:31]} Ne4 {[%clk 00:49:48]}
{[%emt 00:04:11]} 15. Bh2 {[%clk 01:01:36]} {[%emt 00:05:26]} Qe7 {[%clk
00:43:50]} {[%emt 00:06:27]} 16. O-O {[%clk 01:00:18]} {[%emt 00:01:45]} O-O
{[%clk 00:43:27]} {[%emt 00:00:56]} 17. Nd2 {[%clk 00:56:23]} {[%emt 00:04:23]}
e5 {[%clk 00:38:15]} {[%emt 00:06:09]} 18. f3 {[%clk 00:50:26]} {[%emt
00:06:01]} Nd6 {[%clk 00:35:51]} {[%emt 00:02:53]} 19. Bd3 {[%emt 00:06:10]} f5
{[%clk 00:32:03]} {[%emt 00:02:46]} 20. Bc2 {[%emt 00:06:44]} Nf6 {[%clk
00:27:55]} {[%emt 00:01:20]} 21. Qe1 {[%clk 00:41:58]} {[%emt 00:02:11]} e4
{[%clk 00:25:17]} {[%emt 00:02:50]} 22. Bxd6 {[%clk 00:38:26]} {[%emt
00:04:01]} Qxd6 {[%clk 00:25:40]} {[%emt 00:00:21]} 23. f4 {[%clk 00:38:53]} a5
{[%clk 00:24:30]} 24. Nb3 {[%clk 00:38:40]} {[%emt 00:02:13]} Nd7 {[%clk
00:24:38]} 25. Rd1 {[%clk 00:37:16]} {[%emt 00:02:17]} Nc5 {[%clk 00:21:41]} 26.
Rf2 {[%emt 00:06:06]} a4 27. Nc1 Ne6 28. a3 {[%clk 00:35:35]} Qc5 {[%clk
00:21:21]} 29. Na2 {[%clk 00:31:29]} {[%emt 00:10:36]} Rfd8 {[%clk 00:00:32]}
30. Nb4 {[%clk 00:31:42]} {[%emt 00:17:59]} Nc7 {[%clk 00:00:40]} 31. Kh2
{[%emt 00:02:36]} Bc6 32. Bb1 Bb5 33. Qd2 Bc4 34. Rg1 Rd6 35. g4 Rf8 36. Rfg2
Ne8 37. gxf5 Rxf5 38. Rg5 Rdf6 39. Bc2 h6 40. Rxf5 Rxf5 41. Bxa4 b5 42. Bd1 Rf6
43. Bh5 Nd6 44. Bg6 Nc8 45. Qd4 Qxd4 46. cxd4 Ne7 47. Bh5 Nf5 48. Re1 Bb3 49.
Bg4 Nd6 50. Rc1 Bc4 51. Rc3 g5 52. b3 gxf4 53. bxc4 f3 54. Nxd5 Rf8 55. Nf4
bxc4 56. Be6+ Kh7 57. Kg3 Rb8 58. a4 Ra8 59. Ra3 Ra5 60. h4 Kh8 61. Ng6+ Kg7 62.
Ne5 c3 63. Rxc3 Rxa4 64. Rc6 Ne8 65. Bf5 Ra3 66. Rg6+ Kf8 67. Bxe4 Rxe3 68.
Bxf3 Ng7 69. Kf4 Ra3 70. Rxh6 {[%clk 00:30:04]} 1-0

[Event "VII Open Internacional Quart de Poblet"]
[Site "Quart de Poblet, Spain"]
[Date "2019.08.11"]
[Round "9.6"]
[White "Carbonell Sancho, Marc"]
[Black "Gonzalvez Tamarit, Ruben"]
[Result "1-0"]
[TimeControl "90m +30s por jugada"]
[WhiteFideId "32029969"]
[BlackFideId "32041764"]
[WhiteElo "2187"]
[BlackElo "2087"]

1. e4 {[%clk 01:29:20]} {[%emt 00:01:40]} e5 {[%clk 01:30:52]} {[%emt
00:00:42]} 2. Nf3 {[%clk 01:29:47]} Nc6 {[%clk 01:31:17]} 3. Bc4 {[%clk
01:30:14]} Bc5 {[%clk 01:31:40]} 4. b4 {[%clk 01:30:40]} Bxb4 {[%clk 01:32:02]}
{[%emt 00:00:03]} 5. c3 {[%clk 01:31:06]} Be7 {[%clk 01:29:02]} {[%emt
00:03:33]} 6. d4 {[%clk 01:31:31]} {[%emt 00:00:03]} d6 {[%clk 01:25:33]}
{[%emt 00:03:59]} 7. Qb3 {[%clk 01:28:49]} {[%emt 00:03:11]} Na5 {[%clk
01:23:58]} {[%emt 00:02:05]} 8. Bxf7+ {[%clk 01:26:34]} {[%emt 00:02:43]} Kf8
{[%clk 01:24:25]} {[%emt 00:00:31]} 9. Qa4 {[%clk 01:26:47]} Kxf7 {[%clk
01:20:50]} {[%emt 00:03:54]} 10. Qxa5 {[%clk 01:26:16]} {[%emt 00:01:01]} exd4
{[%clk 01:15:20]} {[%emt 00:06:00]} 11. cxd4 {[%clk 01:22:46]} {[%emt
00:04:00]} c6 {[%clk 01:12:22]} {[%emt 00:03:32]} 12. Qa4 {[%clk 01:21:37]}
{[%emt 00:01:35]} Be6 {[%clk 00:58:40]} {[%emt 00:14:12]} 13. Nc3 {[%clk
01:17:07]} {[%emt 00:05:01]} h6 {[%clk 00:46:01]} {[%emt 00:13:08]} 14. O-O
{[%clk 01:12:14]} {[%emt 00:05:22]} Nf6 {[%clk 00:44:55]} {[%emt 00:01:39]} 15.
e5 {[%clk 01:08:05]} {[%emt 00:04:39]} Nd5 {[%clk 00:40:05]} {[%emt 00:05:18]}
16. Ne4 {[%clk 01:02:27]} {[%emt 00:06:07]} Nb6 {[%clk 00:38:03]} {[%emt
00:02:33]} 17. Qc2 {[%clk 01:01:24]} {[%emt 00:01:32]} d5 {[%clk 00:35:50]}
{[%emt 00:03:05]} 18. Nc5 {[%clk 00:45:53]} {[%emt 00:15:40]} Bxc5 {[%clk
00:30:21]} {[%emt 00:06:17]} 19. dxc5 {[%clk 00:46:09]} Nc4 {[%clk 00:29:11]}
{[%emt 00:01:36]} 20. Bb2 {[%clk 00:34:42]} {[%emt 00:12:03]} Qe7 {[%clk
00:21:46]} {[%emt 00:07:48]} 21. Nd4 {[%clk 00:34:14]} {[%emt 00:00:58]} Rhf8
{[%clk 00:20:54]} {[%emt 00:01:22]} 22. f4 {[%clk 00:20:44]} {[%emt 00:14:25]}
Ne3 {[%clk 00:08:36]} {[%emt 00:12:24]} 23. Qc3 {[%clk 00:20:51]} {[%emt
00:00:38]} Nxf1 {[%clk 00:07:29]} {[%emt 00:01:26]} 24. Rxf1 {[%clk 00:21:20]}
g6 {[%clk 00:06:33]} {[%emt 00:01:27]} 25. Qf3 {[%clk 00:18:23]} {[%emt
00:03:25]} Qd7 {[%clk 00:03:56]} {[%emt 00:03:14]} 26. f5 {[%clk 00:17:23]}
{[%emt 00:01:22]} gxf5 {[%clk 00:03:49]} {[%emt 00:00:35]} 27. Qh5+ {[%clk
00:17:47]} {[%emt 00:00:32]} Kg7 {[%clk 00:01:25]} {[%emt 00:02:33]} 28. Nxf5+
{[%clk 00:15:16]} {[%emt 00:02:57]} Rxf5 {[%clk 00:01:52]} {[%emt 00:00:40]} 29.
Rxf5 {[%clk 00:15:42]} Rf8 {[%clk 00:00:55]} {[%emt 00:00:54]} 30. Rf6 {[%clk
00:09:51]} {[%emt 00:06:23]} Rxf6 {[%clk 00:01:17]} {[%emt 00:00:06]} 31. exf6+
{[%clk 00:10:20]} {[%emt 00:00:28]} Kh7 {[%clk 00:01:33]} {[%emt 00:00:06]} 32.
Bc1 {[%clk 00:10:49]} Qf7 {[%clk 00:01:11]} {[%emt 00:00:33]} 33. Qxh6+ {[%clk
00:11:17]} {[%emt 00:00:25]} Kg8 {[%clk 00:01:37]} 34. Bb2 {[%clk 00:11:34]}
{[%emt 00:00:07]} Bf5 {[%clk 00:01:18]} {[%emt 00:00:47]} 35. Bd4 {[%clk
00:11:53]} {[%emt 00:00:03]} Qg6 {[%clk 00:01:28]} {[%emt 00:00:26]} 36. Qg7+
{[%clk 00:12:20]} {[%emt 00:00:12]} Qxg7 {[%clk 00:01:50]} 37. fxg7 {[%clk
00:12:49]} b6 {[%clk 00:01:43]} {[%emt 00:00:33]} 38. cxb6 {[%clk 00:13:00]}
{[%emt 00:00:14]} axb6 {[%clk 00:02:09]} {[%emt 00:00:06]} 39. Bxb6 {[%clk
00:13:24]} {[%emt 00:00:05]} Kxg7 {[%clk 00:02:37]} {[%emt 00:00:28]} 40. a4
{[%clk 00:13:16]} {[%emt 00:00:14]} Kf6 {[%clk 00:02:12]} {[%emt 00:00:53]} 41.
Kf2 {[%clk 00:13:39]} {[%emt 00:00:38]} Bd3 {[%clk 00:01:06]} {[%emt 00:01:05]}
42. a5 {[%clk 00:12:28]} {[%emt 00:01:42]} Ke6 {[%clk 00:01:23]} {[%emt
00:00:13]} 43. Ke3 {[%clk 00:12:51]} {[%emt 00:00:16]} Bf1 {[%clk 00:01:45]}
{[%emt 00:00:15]} 44. g4 {[%clk 00:12:45]} {[%emt 00:00:20]} Kf6 {[%clk
00:01:16]} {[%emt 00:00:58]} 45. h4 {[%clk 00:12:58]} {[%emt 00:00:19]} Ke5
{[%clk 00:01:03]} {[%emt 00:00:44]} 46. h5 {[%clk 00:12:51]} {[%emt 00:00:34]}
Kf6 {[%clk 00:00:51]} {[%emt 00:00:43]} 47. Kf4 {[%clk 00:13:15]} {[%emt
00:00:14]} Be2 {[%clk 00:00:40]} {[%emt 00:00:34]} 48. Bd4+ {[%clk 00:13:29]}
{[%emt 00:00:34]} Kf7 {[%clk 00:00:53]} {[%emt 00:00:04]} 49. Kg5 {[%clk
00:12:58]} {[%emt 00:00:54]} Kg8 {[%clk 00:00:51]} {[%emt 00:00:35]} 50. Kg6
{[%clk 00:12:53]} {[%emt 00:00:32]} Bd3+ {[%clk 00:00:43]} {[%emt 00:00:38]} 51.
Kf6 {[%clk 00:12:44]} {[%emt 00:00:39]} Be2 {[%clk 00:00:55]} {[%emt 00:00:21]}
52. h6 {[%clk 00:12:49]} {[%emt 00:00:25]} Kh7 {[%clk 00:00:59]} {[%emt
00:00:23]} 53. g5 {[%clk 00:13:13]} {[%emt 00:00:13]} c5 {[%clk 00:00:54]}
{[%emt 00:00:31]} 54. g6+ {[%clk 00:13:11]} {[%emt 00:00:29]} Kh8 {[%clk
00:00:57]} {[%emt 00:00:40]} 55. Be5 {[%clk 00:13:24]} {[%emt 00:00:04]} Kg8
{[%clk 00:00:36]} {[%emt 00:00:50]} 56. h7+ {[%clk 00:13:49]} {[%emt 00:00:10]}
1-0